{"text_format":"1","workbook":"xlsx","n_sheets":1,"sheets":["1004.2-6T,N BTNMT"],"not_rendered":{"charts":0,"images":0,"macros":0,"external_links":0,"defined_names":1,"comments":0,"pivot_tables":0},"unopened":[],"bounds":{"document_bytes":16777216,"sheet_cells":100000,"rows_first":2000,"rows_last":500,"rows_between":2000,"halvings":0,"cell_chars":16384,"cell_head_chars":4096},"cells_cut":0,"cells_raw":0,"read":"whole","date_system":"1900"}

{"sheet":"1004.2-6T,N BTNMT","index":0,"n_rows":79,"n_cols":23,"rows_kept":79,"cut":false,"hidden":false,"merged":[[83,1,83,3],[77,0,77,3],[77,6,77,12],[77,15,77,20],[78,0,78,3],[78,6,78,12],[78,15,78,20],[9,19,9,20],[9,6,10,6],[9,7,9,8],[9,9,9,10],[9,11,9,12],[9,13,9,14],[9,15,9,16],[7,1,10,1],[9,4,10,4],[9,5,10,5],[7,3,8,4],[9,17,9,18],[9,3,10,3],[9,21,9,22],[8,7,8,22],[7,5,7,22],[0,18,0,22],[1,18,2,22],[3,6,3,17],[2,6,2,17],[1,6,1,17],[3,0,3,5],[4,0,4,5],[5,0,5,5],[7,2,10,2],[0,0,0,5],[1,0,2,5],[8,5,8,6],[7,0,10,0]]}
["Biểu số: 1004.2-6T,N/BTNMT",null,null,null,null,null,null,null,null,null,null,null,null,null,null,null,null,null,"Đơn vị báo cáo: Thanh tra Bộ"]
["Ban hành kèm theo thông tư số 22/2023/TT-BTNMT ngày 15 tháng 12 năm 2023 của  Bộ trưởng Bộ TN&MT",null,null,null,null,null,"TỔNG HỢP SỐ TỔ CHỨC, CÁ NHÂN CÓ VI PHẠM",null,null,null,null,null,null,null,null,null,null,null,"Đơn vị nhận báo cáo: Vụ Kế hoạch - Tài chính"]
[null,null,null,null,null,null,"QUA THANH TRA, KIỂM TRA"]
["Ngày nhận báo cáo:",null,null,null,null,null,"Năm 2023"]
["- Báo cáo 6 tháng: Ngày 20/6 năm báo cáo"]
["- Báo cáo năm: Ngày 15/3 năm sau"]
[]
["STT","Tỉnh/thành phố","Mã số","Tổng số",null,"Trong đó:"]
[null,null,null,null,null,"Thanh tra, kiểm tra hành chính",null,"Thanh tra, kiểm tra chuyên ngành"]
[null,null,null,"Số tổ chức, cá nhân có\n vi phạm chính sách, pháp luật","Số vụ chuyển cơ quan điều tra","Số tổ chức, cá nhân có\n vi phạm chính sách, pháp luật","Số vụ chuyển cơ quan điều tra","Đất đai",null,"Tài nguyên nước",null,"Tài nguyên khoáng sản, địa chất",null,"Môi trường",null,"Khí tượng thủy văn và Biến đổi khí hậu",null,"Đo đạc và Bản đồ",null,"Biển và Hải đảo",null,"Khác"]
[null,null,null,null,null,null,null,"Số tổ chức, cá nhân\n có vi phạm chính\n sách, pháp luật","Số vụ chuyển cơ \nquan điều tra","Số tổ chức, cá nhân\n có vi phạm chính\n sách, pháp luật","Số vụ chuyển cơ\n quan điều tra","Số tổ chức, cá nhân\n có vi phạm chính\n sách, pháp luật","Số vụ chuyển cơ\n quan điều tra","Số tổ chức, cá nhân\n có vi phạm chính\n sách, pháp luật","Số vụ chuyển cơ\n quan điều tra","Số tổ chức, cá nhân\n có vi phạm chính\n sách, pháp luật","Số vụ chuyển cơ\n quan điều tra","Số tổ chức, cá nhân\n có vi phạm chính\n sách, pháp luật","Số vụ chuyển cơ\n quan điều tra","Số tổ chức, cá nhân\n có vi phạm chính\n sách, pháp luật","Số vụ chuyển cơ\n quan điều tra","Số tổ chức, cá nhân\n có vi phạm chính\n sách, pháp luật","Số vụ chuyển cơ\n quan điều tra"]
["A","B","C",1,2,3,4,5,6,7,8,9,10,11,12,13,14,15,16,17,18,19,20]
[1,"An Giang",null,{"$f":"SUM(H13,J13,L13,N13,P13,R13,T13,V13)","v":3},0,null,null,null,null,null,null,1,null,2,null,null,null,null,null,null,null,null,0]
[2,"Bà Rịa - Vũng Tàu",null,{"$f":"SUM(H14,J14,L14,N14,P14,R14,T14,V14)","v":37},0,null,null,1,null,18,null,null,null,2,null,null,null,null,null,null,null,16,0]
[3,"Bạc Liêu ",null,6,0,null,null,6,null,null,null,null,null,null,null,null,null,null,null,null,null,null,0]
[4,"Bắc Kạn",null,24,0,null,null,13,null,null,null,null,null,null,null,null,null,null,null,null,null,11,0]
[5,"Bắc Giang",null,18,0,null,null,null,null,null,null,4,null,14,null,null,null,null,null,null,null,null,0]
[6,"Bắc Ninh",null,0,0,null,null,null,null,null,null,null,null,null,null,null,null,null,null,null,null,null,0]
[7,"Bến Tre",null,4,0,null,null,null,null,null,null,null,null,1,null,null,null,null,null,null,null,3,0]
[8,"Bình Dương",null,16,0,null,null,null,null,null,null,null,null,null,null,null,null,null,null,null,null,16,0]
[9,"Bình Định",null,0,0,null,null,null,null,null,null,null,null,null,null,null,null,null,null,null,null,null,0]
[10,"Bình Phước",null,0,0,null,null,null,null,null,null,null,null,null,null,null,null,null,null,null,null,null,0]
[11,"Bình Thuận",null,0,0,null,null,null,null,null,null,null,null,null,null,null,null,null,null,null,null,null,0]
[12,"Cà Mau",null,3,0,null,null,null,null,1,null,null,null,2,null,null,null,null,null,null,null,null,0]
[13,"Cao Bằng",null,6,0,null,null,2,null,null,null,4,null,null,null,null,null,null,null,null,null,null,0]
[14,"Cần Thơ",null,6,0,null,null,6,null,null,null,null,null,null,null,null,null,null,null,null,null,null,0]
[15,"Đà Nẵng",null,6,0,null,null,null,null,null,null,null,null,6,null,null,null,null,null,null,null,null,0]
[16,"Đắc Lắk",null,5,0,null,null,null,null,null,null,null,null,null,null,null,null,null,null,null,null,5,0]
[17,"Đắc Nông",null,0,0,null,null,null,null,null,null,null,null,null,null,null,null,null,null,null,null,null,0]
[18,"Đồng Nai",null,0,0,null,null,null,null,null,null,null,null,null,null,null,null,null,null,null,null,null,0]
[19,"Đồng Tháp",null,0,0,null,null,null,null,null,null,null,null,null,null,null,null,null,null,null,null,null,0]
[20,"Điện Biên",null,4,0,null,null,4,null,null,null,null,null,null,null,null,null,null,null,null,null,null,0]
[21,"Gia Lai",null,3,0,null,null,null,null,1,null,1,null,1,null,null,null,null,null,null,null,null,0]
[22,"Hà Giang",null,8,0,null,null,null,null,null,null,3,null,5,null,null,null,null,null,null,null,null,0]
[23,"Hà Nam ",null,0,0,null,null,null,null,null,null,null,null,null,null,null,null,null,null,null,null,null,0]
[24,"Hà Nội",null,0,0,null,null,null,null,null,null,null,null,null,null,null,null,null,null,null,null,null,0]
[25,"Hà Tĩnh",null,0,0,null,null,null,null,null,null,null,null,null,null,null,null,null,null,null,null,null,0]
[26,"Hải Dương",null,46,0,null,null,9,null,null,null,null,null,28,null,null,null,null,null,null,null,9,0]
[27,"Hải Phòng",null,18,0,null,null,3,null,null,null,4,null,10,null,null,null,1,null,null,null,null,0]
[28,"Hậu Giang",null,0,0,null,null,null,null,null,null,null,null,null,null,null,null,null,null,null,null,null,0]
[29,"TP. Hồ Chí Minh",null,331,0,null,null,201,null,null,null,null,null,114,null,null,null,null,null,null,null,16,0]
[30,"Hưng Yên",null,26,0,null,null,null,null,null,null,null,null,4,null,null,null,5,null,null,null,17,0]
[31,"Hòa Bình",null,0,0,null,null,null,null,null,null,null,null,null,null,null,null,null,null,null,null,null,0]
[32,"Khánh Hoà",null,0,0,null,null,null,null,null,null,null,null,null,null,null,null,null,null,null,null,null,0]
[33,"Kiên Giang",null,0,0,null,null,null,null,null,null,null,null,null,null,null,null,null,null,null,null,null,0]
[34,"Kon Tum ",null,0,0,null,null,null,null,null,null,null,null,null,null,null,null,null,null,null,null,null,0]
[35,"Lai Châu",null,53,0,null,null,9,null,16,null,5,null,3,null,null,null,null,null,null,null,20,0]
[36,"Lâm Đồng",null,3,0,null,null,null,null,null,null,null,null,null,null,null,null,null,null,null,null,3,0]
[37,"Lào Cai",null,17,0,null,null,null,null,null,null,null,null,null,null,null,null,null,null,null,null,17,0]
[38,"Lạng Sơn",null,12,0,null,null,null,null,null,null,null,null,null,null,null,null,null,null,null,null,12,0]
[39,"Long An",null,0,0,null,null,null,null,null,null,null,null,null,null,null,null,null,null,null,null,null,0]
[40,"Nam Định",null,8,0,null,null,8,null,null,null,null,null,null,null,null,null,null,null,null,null,null,0]
[41,"Nghệ An",null,37,0,null,null,1,null,null,null,1,null,9,null,null,null,null,null,null,null,26,0]
[42,"Ninh Bình",null,0,0,null,null,null,null,null,null,null,null,null,null,null,null,null,null,null,null,null,0]
[43,"Ninh Thuận",null,7,0,null,null,null,null,null,null,1,null,5,null,null,null,null,null,null,null,1,0]
[44,"Phú Thọ",null,11,0,null,null,2,null,1,null,1,null,7,null,null,null,null,null,null,null,null,0]
[45,"Phú Yên",null,5,0,null,null,2,null,null,null,null,null,null,null,null,null,null,null,null,null,3,0]
[46,"Quảng Bình",null,0,0,null,null,null,null,null,null,null,null,null,null,null,null,null,null,null,null,null,0]
[47,"Quảng Nam",null,24,0,null,null,4,null,null,null,null,null,null,null,null,null,null,null,null,null,20,0]
[48,"Quảng Ngãi",null,14,0,null,null,2,null,1,null,2,null,8,null,null,null,null,null,null,null,1,0]
[49,"Quảng Ninh",null,20,0,null,null,6,null,null,null,5,null,2,null,null,null,null,null,null,null,7,0]
[50,"Quảng Trị",null,8,0,null,null,7,null,null,null,null,null,null,null,null,null,null,null,null,null,1,0]
[51,"Sơn La",null,35,0,null,null,19,null,null,null,1,null,4,null,null,null,null,null,null,null,11,0]
[52,"Sóc Trăng",null,20,0,null,null,3,null,11,null,null,null,4,null,null,null,null,null,null,null,2,0]
[53,"Tây Ninh",null,26,0,null,null,null,null,null,null,null,null,26,null,null,null,null,null,null,null,null,0]
[54,"Thái Bình",null,22,0,null,null,9,null,null,null,null,null,11,null,null,null,null,null,null,null,2,0]
[55,"Thái Nguyên",null,20,0,null,null,1,null,null,null,9,null,10,null,null,null,null,null,null,null,null,0]
[56,"Thanh Hóa",null,69,0,null,null,1,null,3,null,22,null,20,null,null,null,null,null,23,null,null,0]
[57,"Thừa Thiên Huế",null,30,0,null,null,8,null,6,null,7,null,8,null,null,null,null,null,null,null,1,0]
[58,"Tiền Giang",null,61,0,null,null,2,null,12,null,43,null,4,null,null,null,null,null,null,null,null,0]
[59,"Trà Vinh",null,4,0,null,null,null,null,1,null,null,null,1,null,null,null,null,null,null,null,2,0]
[60,"Tuyên Quang",null,0,0,null,null,null,null,null,null,null,null,null,null,null,null,null,null,null,null,null,0]
[61,"Vĩnh Long",null,19,0,null,null,7,null,1,null,6,null,5,null,null,null,null,null,null,null,null,0]
[62,"Vĩnh Phúc",null,20,0,null,null,null,null,null,null,null,null,null,null,null,null,null,null,null,null,20,0]
[63,"Yên Bái",null,21,null,null,null,2,null,null,null,9,null,6,null,null,null,null,null,null,null,4,0]
[64,"Bộ TNMT",null,940,null,null,null,{"$f":"SUM(H13:H75)","v":338},null,17,null,18,null,48,null,null,null,null,null,null,null,519,0]
[null,"Tổng Số",null,{"$f":"SUM(D14:D76)","v":2073},{"$f":"SUM(E13:E76)","v":0},null,null,676,null,{"$f":"SUM(J13:J76)","v":89},null,{"$f":"SUM(L13:L76)","v":147},null,{"$f":"SUM(N13:N76)","v":370},null,null,null,{"$f":"SUM(R13:R76)","v":6},null,{"$f":"SUM(T13:T76)","v":23},null,{"$f":"SUM(V13:V76)","v":765},0]
["Người lập biểu",null,null,null,null,null,"Người kiểm tra biểu",null,null,null,null,null,null,null,null,"Thủ trưởng đơn vị"]
["(Ký, họ tên)",null,null,null,null,null,"(Ký, họ tên)",null,null,null,null,null,null,null,null,"(Ký tên, đóng dấu, họ tên)"]